PAYMENT DATE,EXPENSE AREA,EXPENSE TYPE,SUPPLIER,REFERENCE,AMOUNT
13/02/2020,Med Recs HHGH,Miscellaneous Expenses,RESTORE SCAN LTD,0020206664,"27,395.16"
05/02/2020,Risk Department,Miscellaneous Expenses,DATIX BUSINESS SYSTEMS LTD,0020206718,"69,364.15"
20/02/2020,Cath Lab Medical Beds,Healthcare From Other Bodies,STAHFED LTD,0020206795,"25,892.00"
20/02/2020,Balance Sheet,Other Creditors,SG FLEET LTD,0020206827,"27,901.21"
06/02/2020,Decontamination R&D,Cleaning,IHSS,0030209086,"127,932.52"
06/02/2020,Overseas Recruitment,Miscellaneous Expenses,NATIONAL WESTMINSTER BANK PLC,0030209220,"34,598.49"
06/02/2020,Haematology,Healthcare From Other Bodies,IMPERIAL COLLEGE HEALTHCARE NHS TRUST,0040075489,"25,075.20"
13/02/2020,Pharmacy WGH,Transport,HERTFORDSHIRE PARTNERSHIP NHS FOUNDATION,0040076842,"48,937.17"
13/02/2020,Pharmacy WGH,Transport,HERTFORDSHIRE PARTNERSHIP NHS FOUNDATION,0040077652,"48,937.17"
06/02/2020,Endocrinology,Healthcare From Other Bodies,HERTFORDSHIRE COMMUNITY HEALTH SERVICES,0040079128,"161,097.00"
13/02/2020,Endosc Decontam,EQUIPMENT MAINTENANCE,NHS SUPPLY CHAIN MAINTENANCE,0040079254,"90,687.60"
13/02/2020,Uncoded Invoices,Miscellaneous Expenses,NHS SUPPLY CHAIN MAINTENANCE,0040079527,"75,149.40"
20/02/2020,Endocrinology,Healthcare From Other Bodies,HERTFORDSHIRE COMMUNITY HEALTH SERVICES,0040079910,"161,097.00"
06/02/2020,Uncoded Invoices,Nurse Bank,NHS PROFESSIONALS LTD,0040079999,"285,733.85"
06/02/2020,Uncoded Invoices,Nurse Bank,NHS PROFESSIONALS LTD,0040080000,"442,192.42"
17/02/2020,Uncoded Invoices,Nurse Bank,NHS PROFESSIONALS LTD,0040080160,"350,421.61"
06/02/2020,Uncoded Invoices,Medical Agency,NHS PROFESSIONALS LTD,0040080192,"36,233.14"
17/02/2020,Uncoded Invoices,Nurse Bank,NHS PROFESSIONALS LTD,0040080193,"122,316.06"
17/02/2020,Uncoded Invoices,Nurse Bank,NHS PROFESSIONALS LTD,0040080365,"432,052.28"
06/02/2020,Balance Sheet,NHS Creditors,NHS SUPPLY CHAIN ROARP,0040080412,"161,711.38"
06/02/2020,Medic-Gen Medic Junior,Medical Pay,ST.HELENS & KNOWSLEY NHS TRUST,0040080559,"95,000.00"
13/02/2020,Balance Sheet,NHS Creditors,NHS SUPPLY CHAIN ROARP,0040080560,"160,790.11"
20/02/2020,Uncoded Invoices,Nurse Bank,NHS PROFESSIONALS LTD,0040080561,"125,576.18"
20/02/2020,Uncoded Invoices,Medical Agency,NHS PROFESSIONALS LTD,0040080562,"63,460.45"
20/02/2020,Surgical Management,Healthcare From Other Bodies,BMI HEALTHCARE,0040080679,"33,178.88"
20/02/2020,Surgical Management,Healthcare From Other Bodies,BMI HEALTHCARE,0040080680,"37,195.85"
20/02/2020,Uncoded Invoices,Medical Agency,NHS PROFESSIONALS LTD,0040080747,"184,955.05"
20/02/2020,Uncoded Invoices,Nurse Bank,NHS PROFESSIONALS LTD,0040080748,"53,856.34"
20/02/2020,Uncoded Invoices,Nurse Bank,NHS PROFESSIONALS LTD,0040080750,"426,313.92"
20/02/2020,Balance Sheet,NHS Creditors,NHS SUPPLY CHAIN ROARP,0040080757,"172,517.30"
06/02/2020,Balance Sheet,Provisions less than one year,NHS PENSIONS,0040080797,"125,750.36"
27/02/2020,Uncoded Invoices,Medical Agency,NHS PROFESSIONALS LTD,0040080808,"44,103.77"
27/02/2020,Uncoded Invoices,Nurse Bank,NHS PROFESSIONALS LTD,0040080809,"422,722.00"
13/02/2020,Out Patients SACH,Drugs,NHSBSA PRESCRIPTION  PRICING DIVISION,0040080825,"65,427.62"
13/02/2020,IM&T Core Budget,CONSULTANCY SERVICES,ST VINCENTS HEALTH & PUBLIC SECTOR CONS,0040081026,"25,200.00"
27/02/2020,Balance Sheet,NHS Creditors,NHS SUPPLY CHAIN ROARP,0040081035,"196,474.30"
27/02/2020,Uncoded Invoices,Nurse Bank,NHS PROFESSIONALS LTD,0040081048,"82,113.48"
27/02/2020,Blood Products,Blood Products,NHS BLOOD & TRANSPLANT,0040081326,"115,333.45"
27/02/2020,Medic-Gen Medic Junior,Medical Pay,ST.HELENS & KNOWSLEY NHS TRUST,0040081327,"95,000.00"
06/02/2020,Cancer Consultants,Medical Pay,EAST AND NORTH HERTS NHS TRUST,0050085279,"26,668.94"
06/02/2020,Microbiology,Laboratory Expenses,BECTON DICKINSON UK LTD,0060143920,"41,777.80"
06/02/2020,Pharmacy WGH,Drugs,BAYER PLC,0060144012,"78,660.00"
13/02/2020,Haematology -,Laboratory Expenses,HSL PATHOLOGY LLP,0060144033,"44,880.00"
20/02/2020,Pharmacy WGH,Drugs,BAYER PLC,0060144165,"52,440.00"
20/02/2020,Urgent Care Centre,Healthcare From Other Bodies,HERTS URGENT CARE,0060144206,"48,663.45"
20/02/2020,Trust Radiology,Healthcare From Other Bodies,4 WAYS HEALTHCARE,0060144238,"64,482.84"
27/02/2020,Balance Sheet,Assets In Course Of Const'n,CEPHEID UK,0066601226,"69,417.60"
20/02/2020,Balance Sheet,Assets In Course Of Const'n,STARKSTROM,0066601261,"58,763.06"
27/02/2020,Balance Sheet,Assets In Course Of Const'n,STARKSTROM,0066601303,"41,275.20"
20/02/2020,Balance Sheet,Assets In Course Of Const'n,ALPHA FIRE & AIR SOLUTIONS LTD,0066601316,"25,396.86"
20/02/2020,Balance Sheet,Assets In Course Of Const'n,ALPHA FIRE & AIR SOLUTIONS LTD,0066601338,"70,870.40"
27/02/2020,Balance Sheet,Assets In Course Of Const'n,BDO LLP,0066601347,"27,294.00"
27/02/2020,Balance Sheet,Assets In Course Of Const'n,NHS SUPPLY CHAIN CAPITAL,0066601366,"172,446.79"
27/02/2020,Balance Sheet,Assets In Course Of Const'n,LIFTWORKS LTD,0066601379,"29,128.56"
27/02/2020,Balance Sheet,Assets In Course Of Const'n,T & B (CONTRACTORS) LTD,0066601387,"376,714.87"
27/02/2020,Balance Sheet,Assets In Course Of Const'n,OLYMPUS KEYMED,0066601392,"92,505.02"
06/02/2020,IM&T PACS,Computer Purchases,PHILIPS HEALTHCARE,0070125168,"64,864.00"
13/02/2020,Various,Various,CAE HEALTHCARE INC,0070127274,"79,601.99"
13/02/2020,Various,Various,MITIE CLEANING & ENVIRONMENTAL SERVICES,0070128828,"187,487.38"
13/02/2020,Various,Various,MITIE CLEANING & ENVIRONMENTAL SERVICES,0070128829,"177,193.73"
20/02/2020,Various,Various,MITIE CLEANING & ENVIRONMENTAL SERVICES,0070128830,"696,321.77"
13/02/2020,Microbiology,Laboratory Expenses,CHRYSTAL CONSULTING,0070129254,"58,511.42"
27/02/2020,Catering WGH,Provisions,MITIE CLEANING & ENVIRONMENTAL SERVICES,0070129873,"25,030.91"
27/02/2020,Catering WGH,Provisions,MITIE CLEANING & ENVIRONMENTAL SERVICES,0070129880,"31,410.02"
27/02/2020,Catering WGH,Provisions,MITIE CLEANING & ENVIRONMENTAL SERVICES,0070129881,"30,023.62"
20/02/2020,Chemical Pathology,Laboratory Expenses,SIEMENS HEALTHCARE DIAGNOSTICS LTD,0070130036,"201,413.05"
27/02/2020,Chemical Pathology,Laboratory Expenses,SIEMENS HEALTHCARE DIAGNOSTICS LTD,0070130037,"201,413.05"
13/02/2020,Chemical Pathology,Laboratory Expenses,SIEMENS HEALTHCARE DIAGNOSTICS LTD,0070130039,"201,413.05"
20/02/2020,Ward Refurbishment,Miscellaneous Expenses,HYGIENIC FINISHES (SOUTH) LTD,0070130142,"32,792.10"
27/02/2020,Domestics WGH,,MITIE CLEANING & ENVIRONMENTAL SERVICES,0070130323,"696,321.77"
06/02/2020,Energy & Water - WGH,Water & Sewerage,CASTLE WATER LTD,0080090692,"25,410.83"
13/02/2020,Pharmacy WGH,Drugs,NOVARTIS PHARMACEUTICALS UK LTD,0080090707,"27,246.24"
06/02/2020,Porters WGH,,MITIE CLEANING & ENVIRONMENTAL SERVICES,0080090747,"78,583.99"
20/02/2020,Surgical Management,Medical Agency,NES HEALTHCARE UK,0080090757,"26,650.00"
06/02/2020,Balance Sheet,Other Creditors,CP PLUS LTD,0080090759,"70,691.60"
06/02/2020,Patients Appliances,PATIENT APPLIANCES,OPCARE LTD,0080090763,"48,961.22"
27/02/2020,Car Park WGH,Miscellaneous Expenses,CP PLUS LTD,0080090817,"31,852.67"
27/02/2020,Energy & Water - HH,Fuel & Power,EDF ENERGY,0080090830,"43,173.22"
27/02/2020,Energy & Water - WGH,Fuel & Power,EDF ENERGY,0080090842,"84,902.93"
27/02/2020,Energy & Water - SA,Fuel & Power,EDF ENERGY,0080090843,"44,621.76"
20/02/2020,Uniform Bus Rates - WHHT sites,UBR & Council Tax,DACORUM BOROUGH COUNCIL,0080090881,"25,620.00"
27/02/2020,Energy & Water - WGH,Fuel & Power,CORONA ENERGY,0080090960,"111,449.93"
27/02/2020,Energy & Water - SA,Fuel & Power,CORONA ENERGY,0080090961,"28,805.69"
27/02/2020,Balance Sheet,Other Creditors,CP PLUS LTD,0080090996,"70,236.51"
18/02/2020,Balance Sheet,Other Creditors,HMRC GOVERNMENT EMPLOYERS ACCOUNT,0090114440,"2,401,659.32"
18/02/2020,Balance Sheet,Other Creditors,HMRC GOVERNMENT EMPLOYERS ACCOUNT,0090114441,"2,761,219.66"
18/02/2020,Balance Sheet,Non NHS Other Current assets,HMRC GOVERNMENT EMPLOYERS ACCOUNT,0090114442,"77,495.00"
